fUSD/lending_fUSD_20251001
["ID","MTS","AMOUNT","RATE_DAILY","PERIOD"]
[388677822,1759315854517,-160.0,0.00021917,2]
[388677823,1759315854526,-151.0,0.00021917,2]
[388677824,1759315854535,-205.53002,0.00021917,2]
[388677825,1759315854545,-151.0,0.00021917,2]
[388677826,1759315854555,-798.79,0.00021917,2]
[388677827,1759315854563,-16536.78,0.00021917,2]
[388677828,1759315854577,-151.0,0.00021917,2]
[388677829,1759315854586,-1259.49,0.00021917,2]
[388677830,1759315854596,-500.0,0.00021917,2]
[388677831,1759315854605,-500.0,0.00021917,2]
[388677832,1759315854614,-2328.24,0.00021917,2]
[388677833,1759315854624,-500.0,0.00021917,2]
[388677834,1759315854634,-500.0,0.00021917,2]
[388677835,1759315854644,-3082.13,0.00021917,2]
[388677836,1759315854656,-151.0,0.00021917,2]
[388677837,1759315854666,-9883.27,0.00021917,2]
[388677838,1759315854676,-1120.65,0.00021917,2]
[388677839,1759315854687,-500.0,0.00021917,2]
[388677840,1759315854697,-500.0,0.00021917,2]
[388677841,1759315854709,-500.0,0.00021917,2]
[388677842,1759315854718,-287.767695,0.00021917,2]
[388677843,1759315854728,-287.767695,0.00021917,2]
[388677844,1759315854737,-287.767695,0.00021917,2]
[388677845,1759315854746,-287.767695,0.00021917,2]
[388677846,1759315854756,-500.0,0.00021917,2]
[388677847,1759315854765,-287.767695,0.00021917,2]
[388677848,1759315854775,-614.91,0.00021917,2]
[388677849,1759315854784,-287.767695,0.00021917,2]
[388677850,1759315854794,-287.767695,0.00021917,2]
[388677851,1759315854803,-287.767695,0.00021917,2]
[388677852,1759315854813,-287.767695,0.00021917,2]
[388677853,1759315854825,-287.767695,0.00021917,2]
[388677854,1759315854834,-500.36346811,0.00021917,2]
[388677855,1759315854844,-287.767695,0.00021917,2]
[388677856,1759315854854,-287.767695,0.00021917,2]
[388677857,1759315854863,-500.0,0.00021917,2]
[388677858,1759315854873,-287.767695,0.00021917,2]
[388677859,1759315854883,-287.767695,0.00021917,2]
[388677860,1759315854894,-151.0,0.00021917,2]
[388677861,1759315854903,-287.767695,0.00021917,2]
[388677862,1759315854913,-151.0,0.00021917,2]
[388677863,1759315854922,-287.767695,0.00021917,2]
[388677864,1759315854932,-500.0,0.00021917,2]
[388677865,1759315854941,-1018.41,0.00021917,2]
[388677866,1759315854950,-511.97,0.00021917,2]
[388677867,1759315854960,-2821.75,0.00021917,2]
[388677868,1759315854969,-4625.56,0.00021917,2]
[388677869,1759315854978,-718.04,0.00021917,2]
[388677870,1759315854989,-585.45,0.00021917,2]
[388677871,1759315854999,-686.05,0.00021917,2]
[388677872,1759315855008,-2880.91,0.00021917,2]
[388677873,1759315855018,-3503.91,0.00021917,2]
[388677874,1759315855027,-500.0,0.00021917,2]
[388677875,1759315855037,-502.42714392,0.00021917,2]
[388677876,1759315855046,-503.3119031,0.00021917,2]
[388677877,1759315855056,-1965.82,0.00021917,2]
[388677878,1759315855065,-500.0,0.00021917,2]
[388677879,1759315855075,-500.0,0.00021917,2]
[388677880,1759315855086,-1089.23,0.00021917,2]
[388677881,1759315855096,-500.0,0.00021917,2]
[388677882,1759315855105,-500.0,0.00021917,2]
[388677883,1759315855115,-500.0,0.00021917,2]
[388677884,1759315855125,-338.5021954,0.00021917,2]
[388677885,1759315855139,-4699.47,0.00021917,2]
[388677886,1759315855148,-1499.95,0.00021917,2]
[388677887,1759315855158,-2620.62,0.00021917,2]
[388677888,1759315855167,-2504.93,0.00021917,2]
[388677889,1759315855176,-500.0,0.00021917,2]
[388677890,1759315855186,-2988.1,0.00021917,2]
[388677891,1759315855195,-6040.08,0.00021917,2]
[388677892,1759315855205,-500.0,0.00021917,2]
[388677893,1759315855215,-500.0,0.00021917,2]
[388677894,1759315855226,-2546.23,0.00021917,2]
[388677895,1759315855235,-500.0,0.00021917,2]
[388677896,1759315855244,-500.0,0.00021917,2]
[388677897,1759315855253,-3191.09,0.00021917,2]
[388677898,1759315855263,-3394.81,0.00021917,2]
[388677899,1759315855272,-1257.16,0.00021917,2]
[388677900,1759315855281,-562.8,0.00021917,2]
[388677901,1759315855291,-2031.52,0.00021917,2]
[388677902,1759315855301,-770.1,0.00021917,2]
[388677903,1759315855311,-500.0,0.00021917,2]
[388677904,1759315855322,-503.88674895,0.00021917,2]
[388677905,1759315855332,-500.0,0.00021917,2]
[388677906,1759315855341,-796.33,0.00021917,2]
[388677907,1759315855351,-500.0,0.00021917,2]
[388677908,1759315855362,-500.0,0.00021917,2]
[388677909,1759315855373,-3041.66,0.00021917,2]
[388677910,1759315855383,-151.0,0.00021917,2]
[388677911,1759315855393,-500.0,0.00021917,2]
[388677912,1759315855404,-151.0,0.00021917,2]
[388677913,1759315855415,-169.887086,0.00021917,2]
[388677914,1759315855426,-2962.84,0.00021917,2]
[388677915,1759315855436,-602.7833907,0.00021917,2]
[388677916,1759315855446,-500.0,0.00021917,2]
[388677917,1759315855456,-4164.02,0.00021917,2]
[388677918,1759315855467,-500.0,0.00021917,2]
[388677919,1759315855477,-500.0,0.00021917,2]
[388677920,1759315855487,-3605.65,0.00021917,2]
[388677921,1759315855496,-4073.18,0.00021917,2]
[388677922,1759315855507,-2570.28,0.00021917,2]
[388677923,1759315855518,-500.0,0.00021917,2]
[388677924,1759315855528,-586.89,0.00021917,2]
[388677925,1759315855539,-500.0,0.00021917,2]
[388677926,1759315855549,-2482.03,0.00021917,2]
[388677927,1759315855559,-500.0,0.00021917,2]
[388677928,1759315855570,-151.0,0.00021917,2]
[388677929,1759315855580,-242.429329,0.00021917,2]
[388677930,1759315855591,-500.0,0.00021917,2]
[388677931,1759315855601,-726.31,0.00021917,2]
[388677932,1759315855612,-500.0,0.00021917,2]
[388677933,1759315855622,-500.0,0.00021917,2]
[388677934,1759315855633,-500.0,0.00021917,2]
[388677935,1759315855642,-10036.37,0.00021917,2]
[388677936,1759315855652,-1009.004786,0.00021917,2]
[388677937,1759315855663,-500.0,0.00021917,2]
[388677938,1759315855673,-1009.004786,0.00021917,2]
[388677939,1759315855683,-1009.004786,0.00021917,2]
[388677940,1759315855696,-1009.004786,0.00021917,2]
[388677941,1759315855708,-2466.91,0.00021917,2]
[388677942,1759315855720,-151.0,0.00021917,2]
[388677943,1759315855731,-1009.004786,0.00021917,2]
[388677944,1759315855741,-151.0,0.00021917,2]
[388677945,1759315855751,-1690.28,0.00021917,2]
[388677946,1759315855763,-1009.004786,0.00021917,2]
[388677947,1759315855774,-1009.004786,0.00021917,2]
[388677948,1759315855784,-1009.004786,0.00021917,2]
[388677949,1759315855795,-1009.004786,0.00021917,2]
[388677950,1759315855805,-1009.004786,0.00021917,2]
[388677951,1759315855815,-1009.004786,0.00021917,2]
[388677952,1759315855825,-500.0,0.00021917,2]
[388677953,1759315855835,-500.0,0.00021917,2]
[388677954,1759315855846,-500.0,0.00021917,2]
[388677955,1759315855856,-1009.004786,0.00021917,2]
[388677956,1759315855865,-1009.004786,0.00021917,2]
[388677957,1759315855876,-313.43209178,0.00021917,2]
[388677958,1759315855887,-1009.004786,0.00021917,2]
[388677959,1759315855899,-2236.81,0.00021917,2]
[388677960,1759315855927,-151.0,0.00021917,2]
[388677961,1759315855938,-1009.004786,0.00021917,2]
[388677962,1759315855948,-151.0,0.00021917,2]
[388677963,1759315855959,-151.0,0.00021917,2]
[388677964,1759315855970,-1009.004786,0.00021917,2]
[388677965,1759315855980,-1813.09,0.00021917,2]
[388677966,1759315855991,-151.0,0.00021917,2]
[388677967,1759315856002,-3067.84,0.00021917,2]
[388677968,1759315856013,-4093.52,0.00021917,2]
[388677969,1759315856024,-510.31,0.00021917,2]
[388677970,1759315856034,-352.22103195,0.00021917,2]
[388677971,1759315856045,-15977.3,0.00021917,2]
[388677972,1759315856058,-500.0,0.00021917,2]
[388677973,1759315856068,-151.0,0.00021917,2]
[388677974,1759315856079,-5718.31,0.00021917,2]
[388677975,1759315856089,-151.0,0.00021917,2]
[388677976,1759315856100,-2385.3,0.00021917,2]
[388677977,1759315856111,-151.0,0.00021917,2]
[388677978,1759315856127,-500.0,0.00021917,2]
[388677979,1759315856137,-902.83,0.00021917,2]
[388677980,1759315856148,-151.0,0.00021917,2]
[388677981,1759315856159,-151.0,0.00021917,2]
[388677982,1759315856168,-151.0,0.00021917,2]
[388677983,1759315856179,-500.0,0.00021917,2]
[388677984,1759315856189,-500.0,0.00021917,2]
[388677985,1759315856202,-500.0,0.00021917,2]
[388677986,1759315856213,-3638.03,0.00021917,2]
[388677987,1759315856223,-500.0,0.00021917,2]
[388677988,1759315856234,-1973.24,0.00021917,2]
[388677989,1759315856245,-4806.01,0.00021917,2]
[388677990,1759315856255,-4195.58,0.00021917,2]
[388677991,1759315856265,-500.0,0.00021917,2]
[388677992,1759315856277,-500.0,0.00021917,2]
[388677993,1759315856287,-2781.95,0.00021917,2]
[388677994,1759315856297,-500.0,0.00021917,2]
[388677995,1759315856307,-1360.35,0.00021917,2]
[388677996,1759315856317,-500.0,0.00021917,2]
[388677997,1759315856328,-652.01,0.00021917,2]
[388677998,1759315856338,-3112.17,0.00021917,2]
[388677999,1759315856348,-151.0,0.00021917,2]
[388678000,1759315856359,-151.657926,0.00021917,2]
[388678001,1759315856370,-3097.43,0.00021917,2]
[388678002,1759315856380,-6991.28,0.00021917,2]
[388678003,1759315856390,-767.35,0.00021917,2]
[388678004,1759315856400,-500.0,0.00021917,2]
[388678005,1759315856410,-500.0,0.00021917,2]
[388678006,1759315856420,-500.0,0.00021917,2]
[388678007,1759315856430,-3760.81,0.00021917,2]
[388678008,1759315856440,-500.0,0.00021917,2]
[388678009,1759315856451,-500.0,0.00021917,2]
[388678010,1759315856462,-5481.27,0.00021917,2]
[388678011,1759315856472,-5611.01,0.00021917,2]
[388678012,1759315856482,-500.0,0.00021917,2]
[388678013,1759315856492,-2585.52,0.00021917,2]
[388678014,1759315856502,-577.44,0.00021917,2]
[388678015,1759315856512,-3046.75,0.00021917,2]
[388678016,1759315856523,-1217.65,0.00021917,2]
[388678017,1759315856533,-1482.37,0.00021917,2]
[388678018,1759315856543,-500.0,0.00021917,2]
[388678019,1759315856552,-500.0,0.00021917,2]
[388678020,1759315856562,-10073.53,0.00021917,2]
[388678021,1759315856573,-500.0,0.00021917,2]
[388678022,1759315856583,-818.97,0.00021917,2]
[388678023,1759315856594,-500.0,0.00021917,2]
[388678024,1759315856604,-637.76,0.00021917,2]
[388678025,1759315856615,-500.0,0.00021917,2]
[388678026,1759315856625,-500.0,0.00021917,2]
[388678027,1759315856635,-699.39,0.00021917,2]
[388678028,1759315856645,-500.0,0.00021917,2]
[388678029,1759315856657,-500.0,0.00021917,2]
[388678030,1759315856667,-2837.44,0.00021917,2]
[388678031,1759315856678,-8297.12,0.00021917,2]
[388678032,1759315856689,-10420.76,0.00021917,2]
[388678033,1759315856699,-500.0,0.00021917,2]
[388678034,1759315856711,-500.0,0.00021917,2]
[388678035,1759315856721,-525.32,0.00021917,2]
[388678036,1759315856731,-6219.87,0.00021917,2]
[388678037,1759315856741,-500.0,0.00021917,2]
[388678038,1759315856751,-584.17,0.00021917,2]
[388678039,1759315856761,-500.0,0.00021917,2]
[388678040,1759315856771,-151.0,0.00021917,2]
[388678041,1759315856781,-1199.11,0.00021917,2]
[388678042,1759315856791,-151.0,0.00021917,2]
[388678043,1759315856802,-151.0,0.00021917,2]
[388678044,1759315856820,-500.0,0.00021917,2]
[388678045,1759315856835,-151.0,0.00021917,2]
[388678046,1759315856847,-181.2,0.00021917,2]
[388678047,1759315856858,-1433.15,0.00021917,2]
[388678048,1759315856872,-500.0,0.00021917,2]
[388678049,1759315856885,-500.0,0.00021917,2]
[388678050,1759315856899,-500.0,0.00021917,2]
[388678051,1759315856913,-535.37,0.00021917,2]
[388678052,1759315856927,-3200.8,0.00021917,2]
[388678053,1759315856940,-151.0,0.00021917,2]
[388678054,1759315856953,-151.0,0.00021917,2]
[388678055,1759315856966,-151.0,0.00021917,2]
[388678056,1759315856979,-151.0,0.00021917,2]
[388678057,1759315856993,-151.0,0.00021917,2]
[388678058,1759315857007,-2522.08,0.00021917,2]
[388678059,1759315857022,-2953.13,0.00021917,2]
[388678060,1759315857037,-615.35847565,0.00021917,2]
[388678061,1759315857050,-15202.75,0.00021917,2]
[388678062,1759315857065,-500.0,0.00021917,2]
[388678063,1759315857079,-916.66,0.00021917,2]
[388678064,1759315857092,-860.63,0.00021917,2]
[388678065,1759315857106,-4272.96,0.00021917,2]
[388678066,1759315857120,-151.0,0.00021917,2]
[388678067,1759315857135,-4074.41,0.00021917,2]
[388678068,1759315857151,-151.0,0.00021917,2]
[388678069,1759315857164,-151.0,0.00021917,2]
[388678070,1759315857177,-151.0,0.00021917,2]
[388678071,1759315857189,-214.864662,0.00021917,2]
[388678072,1759315857202,-500.0,0.00021917,2]
[388678073,1759315857215,-500.0,0.00021917,2]
[388678074,1759315857231,-4068.13,0.00021917,2]
[388678075,1759315857242,-1810.9,0.00021917,2]
[388678076,1759315857253,-500.0,0.00021917,2]
[388678077,1759315857264,-853.01,0.00021917,2]
[388678078,1759315857276,-151.0,0.00021917,2]
[388678079,1759315857289,-151.0,0.00021917,2]
[388678080,1759315857301,-2982.82,0.00021917,2]
[388678081,1759315857312,-500.0,0.00021917,2]
[388678082,1759315857323,-151.0,0.00021917,2]
[388678083,1759315857335,-502.04107146,0.00021917,2]
[388678084,1759315857347,-3520.85,0.00021917,2]
[388678085,1759315857359,-151.0,0.00021917,2]
[388678086,1759315857372,-151.0,0.00021917,2]
[388678087,1759315857384,-151.0,0.00021917,2]
[388678088,1759315857396,-151.0,0.00021917,2]
[388678089,1759315857408,-568.28,0.00021917,2]
[388678090,1759315857421,-151.0,0.00021917,2]
[388678091,1759315857434,-500.0,0.00021917,2]
[388678092,1759315857445,-602.47,0.00021917,2]
[388678093,1759315857465,-8462.87,0.00021917,2]
[388678094,1759315857476,-500.0,0.00021917,2]
[388678095,1759315857488,-604.09133476,0.00021917,2]
[388678096,1759315857500,-151.0,0.00021917,2]
[388678097,1759315857512,-151.0,0.00021917,2]
[388678098,1759315857523,-205.245232,0.00021917,2]
[388678099,1759315857535,-151.0,0.00021917,2]
[388678100,1759315857547,-8391.27,0.00021917,2]
[388678101,1759315857560,-207.24817034,0.00021917,2]
[388678102,1759315857572,-158.1620189,0.00021917,2]
[388678103,1759315857584,-500.0,0.00021917,2]
[388678104,1759315857596,-151.0,0.00021917,2]
[388678105,1759315857608,-151.0,0.00021917,2]
[388678106,1759315857619,-151.0,0.00021917,2]
[388678107,1759315857631,-151.0,0.00021917,2]
[388678108,1759315857643,-500.0,0.00021917,2]
[388678109,1759315857655,-151.0,0.00021917,2]
[388678110,1759315857667,-1878.28,0.00021917,2]
[388678111,1759315857679,-500.0,0.00021917,2]
[388678112,1759315857691,-151.0,0.00021917,2]
[388678113,1759315857703,-151.0,0.00021918,2]
[388678114,1759315857716,-151.0,0.00021918,2]
[388678115,1759315857729,-151.0,0.00021918,2]
[388678116,1759315857741,-151.0,0.00021918,2]
[388678117,1759315857753,-5000.0,0.00021918,2]
[388678118,1759315857765,-152.517211,0.00021918,2]
[388678119,1759315857778,-156.0,0.00021918,2]
[388678120,1759315857790,-156.0,0.00021918,2]
[388678121,1759315857802,-156.0,0.00021918,2]
[388678122,1759315857814,-156.0,0.00021918,2]
[388678123,1759315857826,-156.0,0.00021918,2]
[388678124,1759315857837,-156.0,0.00021918,2]
[388678125,1759315857849,-156.0,0.00021918,2]
[388678126,1759315857861,-156.0,0.00021918,2]
[388678127,1759315857873,-156.0,0.00021918,2]
[388678128,1759315857884,-156.0,0.00021918,2]
[388678129,1759315857897,-156.0,0.00021918,2]
[388678130,1759315857908,-170.83349573,0.00021918,2]
[388678131,1759315857920,-156.0,0.00021918,2]
[388678132,1759315857931,-156.0,0.00021918,2]
[388678133,1759315857942,-156.0,0.00021918,2]
[388678134,1759315857954,-156.0,0.00021918,2]
[388678135,1759315857966,-156.0,0.00021918,2]
[388678136,1759315857977,-156.0,0.00021918,2]
[388678137,1759315857988,-156.0,0.00021918,2]
[388678138,1759315857999,-156.0,0.00021918,2]
[388678139,1759315858011,-156.0,0.00021918,2]
[388678140,1759315858022,-164.92779564,0.00021918,2]
[388678141,1759315858035,-156.0,0.00021918,2]
[388678142,1759315858046,-156.0,0.00021918,2]
[388678143,1759315858058,-299.71795134,0.00021918,2]
[388678144,1759315858069,-160.0,0.00021918,2]
[388678145,1759315858080,-160.0,0.00021918,2]
[388678146,1759315858092,-160.0,0.00021918,2]
[388678147,1759315858104,-160.0,0.00021918,2]
[388678148,1759315858116,-523.64766638,0.00021918,2]
[388678149,1759315858127,-151.0,0.00021918,7]
[388678150,1759315858141,-187.774579,0.00021918,7]
[388678151,1759315858153,-151.0,0.00021918,7]
[388678152,1759315858165,-287.767695,0.00021918,7]
[388678153,1759315858176,-287.767695,0.00021918,7]
[388678154,1759315858188,-287.767695,0.00021918,7]
[388678155,1759315858201,-287.767698,0.00021918,7]
[388678156,1759315858215,-500.0,0.00021919,2]
[388678157,1759315858228,-5152.91979535,0.0002192,2]
[388678158,1759315858240,-5000.0,0.0002192,2]
[388678159,1759315858251,-5000.0,0.0002192,2]
[388678160,1759315858263,-5000.0,0.0002192,2]
[388678161,1759315858276,-5000.0,0.0002192,2]
[388678162,1759315858288,-161.08246282,0.0002192,2]
[388678163,1759315858302,-1009.004786,0.0002192,7]
[388678164,1759315858313,-1009.004786,0.0002192,7]
[388678165,1759315858325,-1009.004786,0.0002192,7]
[388678166,1759315858336,-1009.004777,0.0002192,7]
[388678167,1759315858348,-151.0,0.0002192,7]
[388678168,1759315858360,-771.26422505,0.00021939,2]
[388678169,1759315858373,-872.78795586,0.00021945,2]
[388678170,1759315858384,-644.31,0.00021945,30]
[388678171,1759315858396,-2794.29,0.00021949,4]
[388678172,1759315858407,-500.0,0.00021973,2]
[388678173,1759315858418,-500.0,0.00021973,2]
[388678174,1759315858429,-500.0,0.00021973,2]
[388678175,1759315858439,-500.0,0.00021973,2]
[388678176,1759315858451,-500.0,0.00021973,2]
[388678177,1759315858462,-500.0,0.00021973,2]
[388678178,1759315858473,-500.0,0.00021973,2]
[388678179,1759315858485,-500.0,0.00021973,2]
[388678180,1759315858496,-500.0,0.00021973,2]
[388678181,1759315858508,-500.0,0.00021973,2]
[388678182,1759315858519,-500.0,0.00021973,2]
[388678183,1759315858531,-500.0,0.00021973,2]
[388678184,1759315858542,-500.0,0.00021973,2]
[388678185,1759315858554,-500.0,0.00021973,2]
[388678186,1759315858565,-500.0,0.00021973,2]
[388678187,1759315858576,-500.0,0.00021973,2]
[388678188,1759315858588,-500.0,0.00021973,2]
[388678189,1759315858599,-500.0,0.00021973,2]
[388678190,1759315858610,-500.0,0.00021973,2]
[388678191,1759315858621,-200.0,0.00021973,2]
[388678192,1759315858632,-1700.19,0.00021974,4]
[388678193,1759315858643,-150.0,0.00021978,2]
[388678194,1759315858655,-237.46596893,0.0002198,2]
[388678195,1759315858666,-311.34427038,0.00021981,2]
[388678196,1759315858677,-385.22257182,0.00021983,2]
[388678197,1759315858689,-459.10087327,0.00021985,2]
[388678198,1759315858700,-532.97917471,0.00021987,2]
[388678199,1759315858712,-606.85747616,0.00021988,2]
[388678200,1759315858723,-5000.0,0.00021989,4]
[388678201,1759315858735,-150.0,0.0002199,4]
[388678202,1759315858746,-680.73577759,0.0002199,2]
[388678203,1759315858757,-500.0,0.00021999,2]
[388678204,1759315858768,-1975.26,0.00021999,4]
[388678205,1759315858779,-1000.0,0.00021999,2]
[388678206,1759315858791,-500.0,0.00021999,2]
[388678207,1759315858802,-500.0,0.00021999,2]
[388678208,1759315858814,-500.0,0.00021999,2]
[388678209,1759315858825,-500.0,0.00021999,2]
[388678210,1759315858836,-1000.0,0.00021999,2]
[388678211,1759315858847,-677.33712987,0.00021999,2]
[388678212,1759315858860,-771.26422505,0.00022,2]
[388678213,1759315858873,-221955.32743807,0.00022,2]
[388678214,1759315858885,-3646.0,0.00022,2]
[388678215,1759315858897,-66322.80986884,0.00022,7]
[388678216,1759315861017,-151.0,0.00021917,2]
[388678217,1759315861028,-151.0,0.00021917,2]
[388678218,1759315861037,-151.0,0.00021917,2]
[388678219,1759315861047,-151.0,0.00021917,2]
[388678220,1759315861057,-818.0,0.00021917,2]
[388678221,1759315861067,-416.680316,0.00021917,2]
[388678222,1759315861077,-151.0,0.00021917,2]
[388678223,1759315861086,-151.0,0.00021917,2]
[388678224,1759315861095,-416.680316,0.00021917,2]
[388678225,1759315861104,-500.0,0.00021917,2]
[388678226,1759315861115,-416.680316,0.00021917,2]
[388678227,1759315861129,-416.680316,0.00021917,2]
[388678228,1759315861140,-14771.88146158,0.00022,7]
[388678229,1759315861268,-254.39284481,0.00022,7]
[388678230,1759315923660,-393.82,0.00016612,2]
[388678231,1759315926417,-106.18,0.00016612,2]
[388678236,1759316087395,-263.82,0.00016612,2]
[388678237,1759316089799,-236.18,0.00016612,2]
[388678239,1759316111111,404.84837648,0.0003013,120]
[388678247,1759316228551,288.0,0.00016602,2]
[388678276,1759317032225,-250.0,0.00017,2]
[388678278,1759317032235,-1137.71157667,0.0001708,2]
[388678280,1759317032246,-409.87380001,0.0001708,2]
[388678282,1759317032260,-452.41462332,0.0001708,2]
[388678284,1759317032270,-132.25007718,0.00017159,2]
[388678287,1759317032283,-117.74992282,0.00017159,2]
[388678289,1759317032293,-416.24521583,0.00017375,2]
[388678291,1759317032303,-43.33915635,0.00017416,2]
[388678293,1759317032315,-372.90605948,0.00017416,2]
[388678295,1759317032325,-416.24521583,0.00017464,2]
[388678297,1759317032334,-416.24521583,0.00017467,2]
[388678299,1759317032344,-416.24521583,0.00017485,2]
[388678301,1759317032354,-1200.0,0.00017676,2]
[388678303,1759317032363,-2000.0,0.00017677,2]
[388678305,1759317032374,-2000.0,0.00017677,2]
[388678308,1759317032384,-1320.0,0.00017677,2]
[388678311,1759317032393,-370.35923647,0.00018614,2]
[388678314,1759317032403,-391.28009796,0.000187,2]
[388678317,1759317032412,-195.0,0.000187,2]
[388678320,1759317032422,-250.0,0.000187,2]
[388678323,1759317032431,-305.5565728,0.000187,2]
[388678325,1759317032441,-250.0,0.000187,2]
[388678327,1759317032451,-932.70252081,0.000187,2]
[388678332,1759317032495,-1067.29747919,0.000187,2]
[388678334,1759317032505,-1680.0,0.00019388,2]
[388678336,1759317032515,-150.0,0.000195,2]
[388678339,1759317032524,-550.0,0.00020194,2]
[388678340,1759317032537,-150.0,0.00020195,4]
[388678343,1759317032547,-150.0,0.00020195,4]
[388678345,1759317032557,-150.0,0.00020195,4]
[388678347,1759317032567,-150.0,0.00020195,4]
[388678349,1759317032576,-285.51908922,0.00020195,4]
[388678351,1759317032586,-150.0,0.00020195,4]
[388678353,1759317032595,-158.55250353,0.00020195,4]
[388678355,1759317032605,-150.0,0.00020195,4]
[388678357,1759317032615,-150.0,0.00020195,4]
[388678359,1759317032624,-150.0,0.00020195,4]
[388678361,1759317032634,-150.0,0.00020195,4]
[388678363,1759317032643,-150.0,0.00020195,4]
[388678365,1759317032653,-1199.12,0.00020342,2]
[388678367,1759317032662,-763.82,0.00020585,2]
[388678369,1759317032671,-150.62,0.00020639,2]
[388678371,1759317032682,-150.37,0.00020639,2]
[388678373,1759317032692,-150.0,0.00020643,4]
[388678375,1759317032702,-159.96,0.00020654,2]
[388678377,1759317032711,-150.0,0.0002068,2]
[388678379,1759317032721,-237.5,0.00020728,2]
[388678381,1759317032731,-237.09,0.0002073,2]
[388678383,1759317032740,-666.0,0.00020738,3]
[388678385,1759317032750,-500.0,0.0002074,2]
[388678387,1759317032760,-150.0,0.00020755,4]
[388678390,1759317032770,-150.0,0.00020755,4]
[388678392,1759317032779,-150.0,0.00020755,4]
[388678394,1759317032790,-230.63872726,0.00020833,2]
[388678396,1759317032800,-150.0,0.00020942,4]
[388678398,1759317032809,-150.0,0.00020942,4]
[388678400,1759317032818,-150.0,0.00020942,4]
[388678401,1759317032827,-180.0,0.00020986,2]
[388678403,1759317032837,-2000.0,0.00021081,2]
[388678405,1759317032847,-150.0,0.00021092,4]
[388678407,1759317032856,-199.39,0.00021116,2]
[388678409,1759317032866,-1636.14,0.00021116,2]
[388678412,1759317032876,-500.0,0.00021117,2]
[388678414,1759317032885,-500.0,0.00021117,2]
[388678416,1759317032895,-500.0,0.00021117,2]
[388678418,1759317032905,-500.0,0.00021117,2]
[388678420,1759317032915,-500.0,0.00021117,2]
[388678422,1759317032924,-397.07594768,0.00021117,2]
[388678424,1759317032935,-500.0,0.00021117,2]
[388678426,1759317032945,-500.0,0.00021117,2]
[388678428,1759317032954,-500.0,0.00021117,2]
[388678430,1759317032964,-500.0,0.00021117,2]
[388678432,1759317032973,-500.0,0.00021117,2]
[388678434,1759317032982,-500.0,0.00021117,2]
[388678436,1759317032991,-500.0,0.00021117,2]
[388678438,1759317033001,-500.0,0.00021117,2]
[388678440,1759317033011,-11568.7,0.00021129,2]
[388678442,1759317033022,-2351.0,0.00021265,2]
[388678444,1759317033031,-150.0,0.00021316,4]
[388678446,1759317033042,-150.0,0.00021316,4]
[388678448,1759317033052,-150.0,0.00021316,4]
[388678450,1759317033061,-150.0,0.00021316,4]
[388678452,1759317033071,-1036.93046262,0.00021339,2]
[388678455,1759317033081,-2000.0,0.00021354,2]
[388678457,1759317033090,-200.0,0.00021386,2]
[388678458,1759317033100,-199.4,0.0002139,2]